fUST/lending_fUST_20250518
["ID","MTS","AMOUNT","RATE_DAILY","PERIOD"]
[361480386,1747581053413,-842.3232695,0.00011808,2]
[361480388,1747581053422,-842.3232695,0.00011808,2]
[361480390,1747581053431,-842.3232695,0.00011808,2]
[361480392,1747581053440,-842.3232695,0.00011808,2]
[361480394,1747581053450,-842.3232695,0.00011808,2]
[361480408,1747581053572,-842.3232695,0.00011808,2]
[361480410,1747581053582,-842.3232695,0.00011808,2]
[361480412,1747581053591,-842.3232695,0.00011808,2]
[361480414,1747581053601,-842.3232695,0.00011808,2]
[361480416,1747581053612,-262.39795607,0.00011808,2]
[361480418,1747581053622,-491.01,0.00012329,2]
[361480420,1747581053631,-397.8875824,0.00013698,2]
[361480422,1747581053641,-500.0,0.00013699,2]
[361480424,1747581053651,-500.0,0.00013699,2]
[361480426,1747581053661,-500.0,0.00013699,2]
[361480428,1747581053670,-500.0,0.00013699,2]
[361480430,1747581053680,-500.0,0.00013699,2]
[361480432,1747581053690,-500.0,0.00013699,2]
[361480434,1747581053699,-500.0,0.00013699,2]
[361480436,1747581053709,-500.0,0.00013699,2]
[361480438,1747581053719,-500.0,0.00013699,2]
[361480440,1747581053728,-500.0,0.00013699,2]
[361480442,1747581053737,-500.0,0.00013699,2]
[361480444,1747581053747,-500.0,0.00013699,2]
[361480446,1747581053756,-500.0,0.00013699,2]
[361480448,1747581053765,-500.0,0.00013699,2]
[361480450,1747581053774,-500.0,0.00013699,2]
[361480452,1747581053784,-500.0,0.00013699,2]
[361480454,1747581053793,-637.39980169,0.00013699,2]
[361480456,1747581053803,-500.0,0.00013699,2]
[361480458,1747581053812,-500.0,0.00013699,2]
[361480460,1747581053822,-500.0,0.00013699,2]
[361480462,1747581053831,-500.0,0.00013699,2]
[361480464,1747581053841,-160.0,0.00014595,2]
[361480466,1747581053850,-500.0,0.00016438,2]
[361480468,1747581053859,-323.2200698,0.00016438,2]
[361480470,1747581053868,-500.0,0.00016438,2]
[361480472,1747581053878,-10531.56118395,0.0002,2]
[361480488,1747581054015,-298.7548373,0.0002,2]
[361480490,1747581054026,-18398.43184343,0.0002,2]
[361480492,1747581054036,-31780.56312517,0.0002,2]
[361480494,1747581054047,-3123.03851858,0.0002,2]
[361480502,1747581054114,-398.24494583,0.00013698,2]
[361480504,1747581054123,-656.16492434,0.0002,2]
[361480517,1747581054237,-816.97547016,0.000129,2]
[361480519,1747581054247,-8840.23343191,0.0002,2]
[361480521,1747581054256,-49.0179379,0.0002,2]
[361483330,1747582237390,-200.0,9.51e-05,2]
[361483332,1747582237399,-200.0,0.0001,2]
[361483334,1747582237409,-673.45,0.00012329,2]
[361483336,1747582237418,-1489.3602175,0.00012455,2]
[361483338,1747582237427,-24900.0,0.00012603,2]
[361483340,1747582237436,-296.75479194,0.00012693,2]
[361483342,1747582237446,-308.0,0.00012844,2]
[361483344,1747582237455,-311.7804932,0.00013109,2]
[361483346,1747582237465,-450.0,0.00013698,2]
[361483348,1747582237475,-400.0,0.00013698,2]
[361483350,1747582237485,-400.0,0.00013698,2]
[361483352,1747582237495,-157.3069361,0.00013698,2]
[361483354,1747582237504,-450.0,0.00013698,2]
[361483356,1747582237513,-450.0,0.00013698,2]
[361483358,1747582237523,-450.0,0.00013698,2]
[361483360,1747582237532,-450.0,0.00013698,2]
[361483362,1747582237541,-450.0,0.00013698,2]
[361483364,1747582237550,-450.0,0.00013698,2]
[361483366,1747582237559,-1803.68,0.00013698,2]
[361483368,1747582237568,-450.0,0.00013698,2]
[361483370,1747582237578,-450.0,0.00013698,2]
[361483372,1747582237587,-450.0,0.00013698,2]
[361483374,1747582237596,-400.0,0.00013698,2]
[361483376,1747582237605,-450.0,0.00013698,2]
[361483378,1747582237615,-450.0,0.00013698,2]
[361483380,1747582237626,-450.0,0.00013698,2]
[361483382,1747582237636,-450.0,0.00013698,2]
[361483384,1747582237645,-397.62,0.00013698,2]
[361483386,1747582237654,-217.47,0.00013698,2]
[361483388,1747582237664,-450.0,0.00013698,2]
[361483390,1747582237673,-450.0,0.00013698,2]
[361483392,1747582237683,-450.0,0.00013698,2]
[361483394,1747582237693,-450.0,0.00013698,2]
[361483396,1747582237702,-450.0,0.00013698,2]
[361483398,1747582237712,-450.0,0.00013698,2]
[361483400,1747582237722,-450.0,0.00013698,2]
[361483402,1747582237734,-863.02,0.00013698,2]
[361483404,1747582237745,-450.0,0.00013698,2]
[361483406,1747582237754,-332.08204454,0.00013698,2]
[361483408,1747582237763,-450.0,0.00013698,2]
[361483410,1747582237772,-450.0,0.00013698,2]
[361483412,1747582237781,-450.0,0.00013698,2]
[361483414,1747582237790,-156.04,0.00013698,2]
[361483416,1747582237799,-450.0,0.00013698,2]
[361483418,1747582237808,-1537.74,0.00013698,2]
[361483420,1747582237817,-450.0,0.00013698,2]
[361483422,1747582237827,-450.0,0.00013698,2]
[361483424,1747582237837,-450.0,0.00013698,2]
[361483426,1747582237846,-447.715214,0.00013699,2]
[361483428,1747582237856,-258.45155585,0.0001381,2]
[361483430,1747582237866,-500.0,0.00013834,2]
[361483432,1747582237875,-500.0,0.00013834,2]
[361483434,1747582237884,-403.40192024,0.00013834,2]
[361483436,1747582237893,-279.33660487,0.00013834,2]
[361483438,1747582237903,-500.0,0.00013834,2]
[361483440,1747582237912,-450.0,0.00013835,2]
[361483442,1747582237921,-450.0,0.00013835,2]
[361483445,1747582237930,-450.0,0.00013835,2]
[361483448,1747582237939,-450.0,0.00013835,2]
[361483451,1747582237948,-450.0,0.00013835,2]
[361483456,1747582237958,-1803.68,0.00013835,2]
[361483459,1747582237967,-177.34,0.00013835,2]
[361483461,1747582237976,-450.0,0.00013835,2]
[361483463,1747582237986,-450.0,0.00013835,2]
[361483465,1747582237995,-450.0,0.00013835,2]
[361483467,1747582238004,-450.0,0.00013835,2]
[361483469,1747582238014,-450.0,0.00013835,2]
[361483471,1747582238023,-199.38,0.00013835,2]
[361483474,1747582238032,-450.0,0.00013835,2]
[361483477,1747582238041,-450.0,0.00013835,2]
[361483480,1747582238051,-450.0,0.00013835,2]
[361483483,1747582238060,-286.69,0.00013835,2]
[361483485,1747582238069,-863.02,0.00013835,2]
[361483487,1747582238078,-442.54944565,0.00013835,2]
[361483489,1747582238088,-450.0,0.00013835,2]
[361483491,1747582238098,-450.0,0.00013835,2]
[361483493,1747582238107,-450.0,0.00013835,2]
[361483495,1747582238117,-1537.74,0.00013835,2]
[361483496,1747582238126,-450.0,0.00013835,2]
[361483497,1747582238135,-3217.03753805,0.000139,2]
[361483498,1747582238144,-450.0,0.00013972,2]
[361483499,1747582238154,-450.0,0.00013972,2]
[361483500,1747582238163,-466.33,0.00013972,2]
[361483501,1747582238172,-450.0,0.00013972,2]
[361483502,1747582238181,-450.0,0.00013972,2]
[361483503,1747582238191,-1803.68,0.00013972,2]
[361483504,1747582238201,-259.01,0.00013972,2]
[361483505,1747582238210,-256.86154559,0.00013972,2]
[361483506,1747582238230,-450.0,0.00013972,2]
[361483507,1747582238247,-450.0,0.00013972,2]
[361483508,1747582238256,-374.62,0.00013972,2]
[361483509,1747582238265,-417.34,0.00013972,2]
[361483510,1747582238275,-450.0,0.00013972,2]
[361483511,1747582238284,-450.0,0.00013972,2]
[361483512,1747582238293,-863.02,0.00013972,2]
[361483513,1747582238303,-450.0,0.00013972,2]
[361483514,1747582238312,-450.0,0.00013972,2]
[361483515,1747582238320,-345.16517377,0.00013972,2]
[361483516,1747582238329,-1537.74,0.00013972,2]
[361483517,1747582238338,-450.0,0.00013972,2]
[361483518,1747582238349,-151.0,0.00014109,2]
[361483519,1747582238358,-463.02925234,0.00014109,2]
[361483520,1747582238367,-198.52,0.00014109,2]
[361483521,1747582238377,-450.0,0.00014109,2]
[361483523,1747582238390,-450.0,0.00014109,2]
[361483525,1747582238399,-1803.68,0.00014109,2]
[361483527,1747582238409,-450.0,0.00014109,2]
[361483529,1747582238418,-450.0,0.00014109,2]
[361483531,1747582238428,-330.12,0.00014109,2]
[361483533,1747582238437,-450.0,0.00014109,2]
[361483534,1747582238447,-863.02,0.00014109,2]
[361483536,1747582238456,-450.0,0.00014109,2]
[361483539,1747582238466,-450.0,0.00014109,2]
[361483542,1747582238476,-1537.74,0.00014109,2]
[361483544,1747582238487,-450.0,0.00014109,2]
[361483546,1747582238498,-500.0,0.0001412,2]
[361483548,1747582238507,-500.0,0.0001412,2]
[361483550,1747582238516,-500.0,0.00014165,2]
[361483552,1747582238527,-500.0,0.00014165,2]
[361483554,1747582238536,-500.89417392,0.00014165,2]
[361483556,1747582238546,-582.0124819,0.0001417,2]
[361483558,1747582238555,-500.0,0.0001417,2]
[361483560,1747582238565,-450.0,0.00014246,2]
[361483562,1747582238574,-450.0,0.00014246,2]
[361483564,1747582238584,-1803.68,0.00014246,2]
[361483566,1747582238593,-450.0,0.00014246,2]
[361483568,1747582238603,-450.0,0.00014246,2]
[361483570,1747582238612,-450.0,0.00014246,2]
[361483572,1747582238621,-863.02,0.00014246,2]
[361483574,1747582238630,-450.0,0.00014246,2]
[361483576,1747582238639,-450.0,0.00014246,2]
[361483578,1747582238649,-1537.74,0.00014246,2]
[361483580,1747582238658,-450.0,0.00014246,2]
[361483582,1747582238667,-500.0,0.000143,2]
[361483584,1747582238676,-3217.03753783,0.00014314,2]
[361483586,1747582238685,-500.0,0.0001435,2]
[361483588,1747582238695,-151.0,0.00014383,2]
[361483590,1747582238705,-450.0,0.00014383,2]
[361483592,1747582238715,-450.0,0.00014383,2]
[361483595,1747582238725,-1803.68,0.00014383,2]
[361483597,1747582238739,-450.0,0.00014383,2]
[361483599,1747582238748,-450.0,0.00014383,2]
[361483601,1747582238758,-450.0,0.00014383,2]
[361483603,1747582238767,-863.02,0.00014383,2]
[361483605,1747582238777,-450.0,0.00014383,2]
[361483607,1747582238787,-450.0,0.00014383,2]
[361483609,1747582238796,-1537.74,0.00014383,2]
[361483611,1747582238806,-450.0,0.00014383,2]
[361483613,1747582238817,-998.55070715,0.00014483,2]
[361483615,1747582238826,-160.0,0.00014483,2]
[361483617,1747582238836,-160.0,0.00014483,2]
[361483619,1747582238845,-212.32903618,0.00014483,2]
[361483621,1747582238855,-160.0,0.00014483,2]
[361483623,1747582238864,-160.0,0.00014483,2]
[361483625,1747582238873,-12636.50182523,0.00014483,2]
[361483627,1747582238883,-422.53311782,0.00014483,2]
[361483628,1747582238893,-160.0,0.00014483,2]
[361483631,1747582238902,-500.0,0.00014505,2]
[361483633,1747582238912,-450.0,0.0001452,2]
[361483635,1747582238921,-450.0,0.0001452,2]
[361483637,1747582238931,-1803.68,0.0001452,2]
[361483639,1747582238942,-450.0,0.0001452,2]
[361483641,1747582238952,-450.0,0.0001452,2]
[361483642,1747582238962,-450.0,0.0001452,2]
[361483644,1747582238971,-863.02,0.0001452,2]
[361483647,1747582238981,-450.0,0.0001452,2]
[361483649,1747582238991,-450.0,0.0001452,2]
[361483651,1747582239000,-1537.74,0.0001452,2]
[361483653,1747582239009,-389.74220496,0.0001452,2]
[361483655,1747582239018,-500.0,0.00014555,2]
[361483656,1747582239029,-502.56205692,0.00014592,2]
[361483657,1747582239038,-500.0,0.00014592,2]
[361483658,1747582239047,-160.0,0.00014594,2]
[361483659,1747582239057,-151.0,0.00014657,2]
[361483660,1747582239068,-450.0,0.00014657,2]
[361483661,1747582239076,-450.0,0.00014657,2]
[361483662,1747582239086,-1803.68,0.00014657,2]
[361483663,1747582239095,-450.0,0.00014657,2]
[361483664,1747582239105,-450.0,0.00014657,2]
[361483665,1747582239114,-450.0,0.00014657,2]
[361483666,1747582239124,-863.02,0.00014657,2]
[361483667,1747582239133,-450.0,0.00014657,2]
[361483668,1747582239143,-450.0,0.00014657,2]
[361483669,1747582239153,-1537.74,0.00014657,2]
[361483671,1747582239162,-1000.0,0.00014668,2]
[361483672,1747582239172,-1000.0,0.00014718,2]
[361483673,1747582239182,-196.337771,0.00014719,2]
[361483674,1747582239192,-3217.03753783,0.00014728,2]
[361483676,1747582239202,-582.03546498,0.00014742,2]
[361483678,1747582239211,-450.0,0.00014794,2]
[361483679,1747582239220,-450.0,0.00014794,2]
[361483680,1747582239231,-1803.68,0.00014794,2]
[361483681,1747582239241,-450.0,0.00014794,2]
[361483682,1747582239250,-450.0,0.00014794,2]
[361483683,1747582239259,-450.0,0.00014794,2]
[361483684,1747582239268,-863.02,0.00014794,2]
[361483685,1747582239278,-450.0,0.00014794,2]
[361483686,1747582239287,-450.0,0.00014794,2]
[361483687,1747582239297,-1537.74,0.00014794,2]
[361483688,1747582239307,-450.0,0.00014931,2]
[361483689,1747582239317,-1803.68,0.00014931,2]
[361483690,1747582239326,-450.0,0.00014931,2]
[361483691,1747582239335,-450.0,0.00014931,2]
[361483692,1747582239344,-254.07,0.00014931,2]
[361483693,1747582239355,-863.02,0.00014931,2]
[361483694,1747582239363,-1537.74,0.00014931,2]
[361483695,1747582239373,-12011.979952,0.00015,2]
[361483696,1747582239383,-160.0,0.00015,2]
[361483697,1747582239392,-151.0,0.00015068,2]
[361483698,1747582239404,-450.0,0.00015068,2]
[361483699,1747582239413,-1803.68,0.00015068,2]
[361483700,1747582239422,-450.0,0.00015068,2]
[361483701,1747582239432,-450.0,0.00015068,2]
[361483702,1747582239441,-863.02,0.00015068,2]
[361483703,1747582239450,-1537.74,0.00015068,2]
[361483704,1747582239460,-3217.03753783,0.00015141,2]
[361483705,1747582239470,-450.0,0.00015205,2]
[361483706,1747582239479,-1803.68,0.00015205,2]
[361483707,1747582239488,-455.4,0.00015205,2]
[361483708,1747582239497,-450.0,0.00015205,2]
[361483709,1747582239507,-863.02,0.00015205,2]
[361483710,1747582239516,-1537.74,0.00015205,2]
[361483711,1747582239525,-1500.0,0.00015216,2]
[361483712,1747582239535,-1543.47124724,0.00015265,2]
[361483713,1747582239544,-450.0,0.00015342,2]
[361483714,1747582239554,-1803.68,0.00015342,2]
[361483715,1747582239563,-450.0,0.00015342,2]
[361483716,1747582239573,-863.02,0.00015342,2]
[361483717,1747582239582,-1537.74,0.00015342,2]
[361483718,1747582239591,-151.0,0.00015479,2]
[361483719,1747582239602,-450.0,0.00015479,2]
[361483720,1747582239611,-1803.68,0.00015479,2]
[361483721,1747582239620,-450.0,0.00015479,2]
[361483722,1747582239629,-863.02,0.00015479,2]
[361483723,1747582239638,-1537.74,0.00015479,2]
[361483724,1747582239647,-3217.03753783,0.00015555,2]
[361483725,1747582239656,-459.64,0.00015616,2]
[361483726,1747582239665,-1803.68,0.00015616,2]
[361483727,1747582239675,-409.35,0.00015616,2]
[361483728,1747582239685,-863.02,0.00015616,2]
[361483729,1747582239694,-1537.74,0.00015616,2]
[361483730,1747582239703,-1803.68,0.00015753,2]
[361483731,1747582239713,-863.02,0.00015753,2]
[361483732,1747582239722,-1537.74,0.00015753,2]
[361483733,1747582239733,-500.0,0.00015764,2]
[361483734,1747582239745,-1803.68,0.0001589,2]
[361483735,1747582239754,-863.02,0.0001589,2]
[361483736,1747582239764,-1537.74,0.0001589,2]
[361483737,1747582239773,-3217.03753783,0.00015969,2]
[361483738,1747582239783,-197.473619,0.00015982,2]
[361483739,1747582239792,-9444.71841084,0.00016,2]
[361483740,1747582239801,-208.68738347,0.00016,2]
[361483741,1747582239810,-1803.68,0.00016027,2]
[361483742,1747582239820,-863.02,0.00016027,2]
[361483743,1747582239829,-1537.74,0.00016027,2]
[361483744,1747582239839,-12500.0,0.00016143,2]
[361483745,1747582239849,-500.0,0.00016163,2]
[361483747,1747582239859,-500.0,0.00016163,2]
[361483749,1747582239868,-500.0,0.00016163,2]
[361483751,1747582239877,-193.189979,0.00016163,2]
[361483753,1747582239887,-500.0,0.00016163,2]
[361483755,1747582239896,-500.0,0.00016163,2]
[361483762,1747582240047,-500.0,0.00016163,2]
[361483763,1747582240057,-500.0,0.00016163,2]
[361483764,1747582240067,-500.0,0.00016163,2]
[361483767,1747582240077,-600.0,0.00016163,2]
[361483769,1747582240086,-1803.68,0.00016164,2]
[361483771,1747582240096,-863.02,0.00016164,2]
[361483773,1747582240107,-500.0,0.00016164,2]
[361483775,1747582240116,-420.20524469,0.00016164,2]
[361483777,1747582240125,-500.0,0.00016164,2]
[361483778,1747582240135,-500.0,0.00016164,2]
[361483779,1747582240144,-500.0,0.00016164,2]
[361483780,1747582240153,-500.0,0.00016164,2]
[361483782,1747582240162,-500.0,0.00016164,2]
[361483784,1747582240172,-500.0,0.00016164,2]
[361483786,1747582240181,-350.0,0.00016164,2]
[361483787,1747582240190,-1537.74,0.00016164,2]
[361483788,1747582240200,-1803.68,0.00016301,2]
[361483789,1747582240209,-863.02,0.00016301,2]
[361483790,1747582240218,-1537.74,0.00016301,2]
[361483792,1747582240227,-3217.03753783,0.00016383,2]
[361483794,1747582240237,-1803.68,0.00016438,2]
[361483795,1747582240246,-863.02,0.00016438,2]
[361483796,1747582240255,-1537.74,0.00016438,2]
[361483798,1747582240264,-158.511074,0.00016438,2]
[361483799,1747582240274,-1803.68,0.00016575,2]
[361483800,1747582240283,-863.02,0.00016575,2]
[361483801,1747582240292,-1537.74,0.00016575,2]
[361483802,1747582240301,-1803.68,0.00016712,2]
[361483803,1747582240310,-863.02,0.00016712,2]
[361483804,1747582240319,-1537.74,0.00016712,2]
[361483806,1747582240329,-3217.03753783,0.00016797,2]
[361483808,1747582240338,-153.39791691,0.000168,2]
[361483810,1747582240348,-1803.74,0.00016849,2]
[361483812,1747582240357,-863.08719358,0.00016849,2]
[361483814,1747582240366,-1537.88,0.00016849,2]
[361483816,1747582240375,-562.857,0.00016862,2]
[361483818,1747582240385,-60079.78679112,0.00017,2]
[361483828,1747582240469,-2711.48013248,0.00017,2]
[361483830,1747582240480,-439.54794334,0.00017,2]
[361483865,1747582240792,-3080.60000001,0.00017,2]
[361483867,1747582240804,-936.207534,0.00017,2]
[361483869,1747582240815,-1000.012032,0.00017,2]
[361484461,1747582246482,-23189.26155903,0.00017,2]
[361484463,1747582246492,-404.0,0.00017191,2]
[361484465,1747582246502,-3217.03753783,0.0001721,2]
[361484467,1747582246512,-2064.45978072,0.000176,2]
[361484469,1747582246521,-3217.03753783,0.00017624,2]
[361484471,1747582246531,-38098.37220328,0.00018,2]
[361484473,1747582246540,-203.24998535,0.00018,2]
[361484475,1747582246550,-3217.03753783,0.00018038,2]
[361484477,1747582246560,-3217.03753783,0.00018452,2]
[361484479,1747582246569,-3217.03753783,0.00018866,2]
[361484481,1747582246579,-4600.91037971,0.000189,2]
[361484483,1747582246588,-50000.0,0.000189,2]
[361484485,1747582246596,-561.21,0.0001899,3]
[361484487,1747582246606,-71272.46734565,0.00019,20]
[361485798,1747583432493,-200.0,9.9e-05,2]
[361485801,1747583432504,-200.0,0.0001,2]
[361485803,1747583432513,-200.0,0.0001,2]
[361485805,1747583432523,-1494.0245981,0.00012055,2]
[361485807,1747583432533,-300.0,0.00012328,2]
[361485809,1747583432542,-300.0,0.00012328,2]
[361485811,1747583432552,-1200.0,0.00012328,2]
[361485813,1747583432562,-652.67,0.00012329,2]
[361485815,1747583432571,-543.89,0.00012329,2]
[361485817,1747583432581,-453.24,0.00012329,2]
[361485819,1747583432591,-377.7,0.00012329,2]
[361485821,1747583432600,-314.75,0.00012329,2]
[361485822,1747583432610,-262.29,0.00012329,2]
[361485824,1747583432619,-218.58,0.00012329,2]
[361485826,1747583432629,-182.15,0.00012329,2]
[361485828,1747583432641,-151.79,0.00012329,2]
[361485830,1747583432651,-758.96,0.00012329,2]
[361485831,1747583432660,-336.56,0.00012329,2]
[361485832,1747583432670,-280.46,0.00012329,2]
[361485835,1747583432679,-233.72,0.00012329,2]
[361485838,1747583432689,-194.77,0.00012329,2]
[361485840,1747583432698,-162.3,0.00012329,2]
[361485842,1747583432707,-811.55,0.00012329,2]
[361485844,1747583432718,-24900.0,0.00012668,2]
[361485846,1747583432727,-844.94145403,0.00013186,2]
[361485848,1747583432737,-250.0,0.00013213,2]
[361485850,1747583432746,-393.567794,0.00013286,2]
[361485852,1747583432755,-2768.350723,0.00013287,2]
[361485854,1747583432764,-214.0370182,0.00013367,2]
[361485856,1747583432774,-1623.452546,0.00013419,2]
[361485858,1747583432783,-1771.05507373,0.0001342,2]
[361485860,1747583432793,-274.0,0.00013529,2]
[361485862,1747583432802,-885.52753687,0.00013553,2]
[361485864,1747583432811,-1680.0,0.00013561,2]
[361485866,1747583432820,-433.55071425,0.00013598,2]
[361485870,1747583432852,-1176.91018478,0.00013598,2]
[361485873,1747583432861,-155.93354669,0.00013696,2]
[361485875,1747583432870,-595.06921615,0.00013696,2]
[361485877,1747583432880,-595.06921615,0.00013696,2]
[361485879,1747583432892,-595.06921615,0.00013696,2]
[361485880,1747583432902,-595.06921615,0.00013696,2]
[361485882,1747583432912,-595.06921615,0.00013696,2]
[361485885,1747583432922,-595.06921615,0.00013696,2]
[361485887,1747583432931,-595.06921615,0.00013696,2]
[361485889,1747583432941,-595.06921615,0.00013696,2]
[361485891,1747583432951,-595.06921615,0.00013696,2]
[361485893,1747583432960,-595.06921615,0.00013696,2]
[361485895,1747583432970,-595.06921615,0.00013696,2]
[361485897,1747583432979,-595.06921615,0.00013696,2]
[361485899,1747583432988,-595.06921615,0.00013696,2]
[361485901,1747583432998,-595.06921615,0.00013696,2]
[361485903,1747583433008,-595.06921615,0.00013696,2]
[361485905,1747583433017,-595.06921615,0.00013696,2]
[361485907,1747583433027,-595.06921615,0.00013696,2]
[361485909,1747583433039,-595.06921615,0.00013696,2]
[361485911,1747583433049,-595.06921615,0.00013696,2]
[361485913,1747583433060,-595.06921615,0.00013696,2]
[361485915,1747583433070,-595.06921615,0.00013696,2]
[361485917,1747583433080,-595.06921615,0.00013696,2]
[361485919,1747583433090,-595.06921615,0.00013696,2]
[361485921,1747583433100,-595.06921615,0.00013696,2]
[361485923,1747583433109,-595.06921615,0.00013696,2]
[361485925,1747583433120,-595.06921615,0.00013696,2]
[361485927,1747583433130,-595.06921615,0.00013696,2]
[361485929,1747583433140,-595.06921615,0.00013696,2]
[361485931,1747583433150,-595.06921615,0.00013696,2]
[361485933,1747583433159,-595.06921615,0.00013696,2]
[361485935,1747583433170,-595.06921615,0.00013696,2]
[361485937,1747583433180,-595.06921615,0.00013696,2]
[361485939,1747583433189,-595.06921615,0.00013696,2]
[361485941,1747583433199,-595.06921615,0.00013696,2]
[361485943,1747583433209,-595.06921615,0.00013696,2]
[361485945,1747583433219,-595.06921615,0.00013696,2]
[361485947,1747583433228,-595.06921615,0.00013696,2]
[361485948,1747583433238,-595.06921615,0.00013696,2]
[361485949,1747583433248,-595.06921615,0.00013696,2]
[361485950,1747583433257,-595.06921615,0.00013696,2]
[361485951,1747583433267,-595.06921615,0.00013696,2]
[361485952,1747583433277,-595.06921615,0.00013696,2]
[361485953,1747583433287,-595.06921615,0.00013696,2]
[361485954,1747583433296,-595.06921615,0.00013696,2]
[361485955,1747583433306,-595.06921615,0.00013696,2]
[361485956,1747583433320,-586.56822735,0.00013696,2]
[361485957,1747583433330,-586.56822735,0.00013696,2]
[361485958,1747583433340,-586.56822735,0.00013696,2]
[361485959,1747583433353,-586.56822735,0.00013696,2]
[361485960,1747583433363,-586.56822735,0.00013696,2]
[361485961,1747583433373,-586.56822735,0.00013696,2]
[361485962,1747583433383,-586.56822735,0.00013696,2]
[361485963,1747583433394,-586.56822735,0.00013696,2]
[361485964,1747583433404,-586.56822735,0.00013696,2]
[361485965,1747583433415,-586.56822735,0.00013696,2]
[361485966,1747583433424,-586.56822735,0.00013696,2]
[361485967,1747583433434,-586.56822735,0.00013696,2]
[361485968,1747583433444,-586.56822735,0.00013696,2]
[361485969,1747583433454,-586.56822735,0.00013696,2]
[361485970,1747583433463,-586.56822735,0.00013696,2]
[361485971,1747583433472,-586.56822735,0.00013696,2]
[361485972,1747583433482,-586.56822735,0.00013696,2]
[361485973,1747583433491,-586.56822735,0.00013696,2]
[361485974,1747583433501,-586.56822735,0.00013696,2]
[361485975,1747583433510,-586.56822735,0.00013696,2]
[361485976,1747583433519,-586.56822735,0.00013696,2]
[361485977,1747583433532,-586.56822735,0.00013696,2]
[361485978,1747583433541,-586.56822735,0.00013696,2]
[361485979,1747583433551,-586.56822735,0.00013696,2]
[361485980,1747583433561,-586.56822735,0.00013696,2]
[361485981,1747583433570,-586.56822735,0.00013696,2]
[361485982,1747583433580,-586.56822735,0.00013696,2]
[361485983,1747583433589,-428.24184228,0.00013696,2]
[361486468,1747583443760,-300.0,0.00012205,2]
[361486470,1747583443770,-300.0,0.00012328,2]
[361486472,1747583443779,-420.0,0.00013529,2]
[361486474,1747583443789,-500.0,0.00013697,2]
[361486476,1747583443798,-450.0,0.00013698,2]
[361486478,1747583443807,-450.0,0.00013698,2]
[361486480,1747583443817,-144.50000004,0.00013698,2]
[361486483,1747583443829,-305.49999996,0.00013698,2]
[361486485,1747583443838,-450.0,0.00013698,2]
[361486487,1747583443848,-240.06,0.00013698,2]
[361486489,1747583443858,-450.0,0.00013698,2]
[361486492,1747583443867,-450.0,0.00013698,2]
[361486495,1747583443877,-340.08560282,0.00013698,2]
[361486498,1747583443886,-450.0,0.00013698,2]
[361486501,1747583443896,-915.97,0.00013698,2]
[361486505,1747583443907,-450.0,0.00013698,2]
[361486508,1747583443916,-450.0,0.00013698,2]
[361486509,1747583443926,-450.0,0.00013698,2]
[361486512,1747583443936,-450.0,0.00013698,2]
[361486514,1747583443945,-450.0,0.00013698,2]
[361486516,1747583443954,-450.0,0.00013698,2]
[361486518,1747583443963,-450.0,0.00013698,2]
[361486520,1747583443972,-450.0,0.00013698,2]
[361486522,1747583443982,-3187.26,0.00013698,2]
[361486524,1747583443991,-450.0,0.00013698,2]